fUSD/lending_fUSD_20240601
["ID","MTS","AMOUNT","RATE_DAILY","PERIOD"]
[328367336,1717259432723,-4472.55,0.00028583,2]
[328367337,1717259432733,-11276.04,0.00028586,2]
[328367338,1717259432743,-1126.2080859,0.00028595,4]
[328367339,1717259432754,-262.8,0.00028618,2]
[328367340,1717259432765,-1247.36037009,0.00028693,2]
[328367341,1717259432775,-318.33,0.00028694,2]
[328367342,1717259432785,-5989.68930008,0.00028694,2]
[328367343,1717259432799,-17910.31069992,0.00028694,2]
[328367344,1717259432810,-200.0,0.00028699,2]
[328367345,1717259432822,-150.0,0.00028749,2]
[328367346,1717259432834,-152.48,0.00028819,2]
[328367347,1717259432845,-250.0,0.00028858,2]
[328367348,1717259432858,-250.0,0.00028952,2]
[328367349,1717259432868,-162.29,0.00028954,2]
[328367350,1717259432879,-672.66,0.00028959,2]
[328367351,1717259432889,-904.0,0.00028959,2]
[328367352,1717259432901,-1091.01,0.00028978,2]
[328367353,1717259432914,-150.0,0.00029026,2]
[328367354,1717259432927,-152.48,0.00029116,2]
[328367355,1717259432938,-152.48,0.00029414,2]
[328367356,1717259432948,-152.48,0.00029711,2]
[328367357,1717259432959,-150.0,0.00029781,2]
[328367358,1717259432970,-200.0,0.00029859,2]
[328367359,1717259432982,-155.38639043,0.00029968,2]
[328367360,1717259432992,-152.48,0.00030008,2]
[328367361,1717259433003,-150.0,0.00030536,2]
[328367362,1717259433014,-262.8,0.00030881,2]
[328367363,1717259433024,-909.50874895,0.00031,2]
[328367364,1717259433035,-150.97,0.00031007,2]
[328367365,1717259433046,-154.88905878,0.00031085,7]
[328367366,1717259433057,-167.45,0.00031107,2]
[328367367,1717259433069,-356.87738157,0.000312,2]
[328367368,1717259433080,-158.63613537,0.00031243,7]
[328367369,1717259433091,-150.0,0.00031291,2]
[328367370,1717259433102,-236.87077509,0.000313,10]
[328367371,1717259433114,-6162.9829,0.000313,2]
[328367372,1717259433360,-1604.60035557,0.0003132,4]
[328367373,1717259433370,-166.02579947,0.00031321,4]
[328367374,1717259433379,-162.2448794,0.00031322,4]
[328367375,1717259433389,-237.45016494,0.00031322,4]
[328367376,1717259433399,-350.03451055,0.00031322,4]
[328367377,1717259433408,-2220.76853723,0.00031322,4]
[328367378,1717259433417,-155.0,0.00031366,4]
[328367379,1717259433427,-1216.58199942,0.00031366,4]
[328367380,1717259433436,-6028.77476063,0.00031367,4]
[328367381,1717259433446,-181.69351925,0.0003139,10]
[328367382,1717259433456,-1126.20808589,0.000314,4]
[328367383,1717259433465,-1186.8664,0.000314,2]
[328367384,1717259433474,-277.8053,0.000314,2]
[328367385,1717259433484,-1706.5889,0.000314,2]
[328367386,1717259433493,-2197.0338,0.000314,2]
[328367387,1717259433502,-150.79857822,0.000314,2]
[328367388,1717259433511,-2500.0,0.000314,2]
[328367389,1717259433521,-7500.0,0.000314,2]
[328367390,1717259433530,-165.63559736,0.000314,2]
[328367391,1717259433540,-633.44281604,0.000314,2]
[328367392,1717259433550,-7222.69776759,0.000314,2]
[328367393,1717259433560,-195.42834478,0.000314,2]
[328367394,1717259433569,-375.12325086,0.000314,4]
[328367395,1717259433579,-177.36368287,0.000314,2]
[328367396,1717259433588,-171.07,0.00031401,2]
[328367397,1717259433597,-1364.20678765,0.0003148,3]
[328367398,1717259433608,-152.52,0.0003149,2]
[328367399,1717259433617,-152.52,0.0003149,2]
[328367400,1717259433627,-152.52,0.0003149,2]
[328367401,1717259433636,-152.52,0.0003149,2]
[328367402,1717259433646,-152.52,0.0003149,2]
[328367403,1717259433656,-152.52,0.0003149,2]
[328367404,1717259433665,-152.52,0.0003149,2]
[328367405,1717259433674,-152.52,0.0003149,2]
[328367406,1717259433683,-152.52,0.0003149,2]
[328367407,1717259433693,-152.52,0.0003149,2]
[328367408,1717259433702,-152.52,0.0003149,2]
[328367409,1717259433712,-783.48136778,0.00031499,2]
[328367410,1717259433721,-247.0,0.000315,5]
[328367411,1717259433730,-3207.49757939,0.000315,11]
[328367412,1717259433746,-562.15993343,0.000315,11]
[328367413,1717259433758,-283.87982098,0.000315,11]
[328367414,1717259434048,-5843.19348684,0.000315,11]
[328367415,1717259434058,-208.0,0.000315,2]
[328367416,1717259434068,-48556.5449535,0.000315,5]
[328367417,1717259434079,-1024.43638854,0.000315,5]
[328367418,1717259434119,-132524.82175035,0.000315,5]
[328367419,1717259434130,-5669.67267634,0.000315,5]
[328367420,1717259434145,-3978.28296456,0.000315,5]
[328367421,1717259434157,-1209.45727771,0.000315,5]
[328367422,1717259434270,-0.00555956,0.000315,5]
[328367423,1717259438673,-317.58557093,0.000314,2]
[328367424,1717259438683,-226.91245448,0.000314,2]
[328367425,1717259438738,-1.03473808,0.000314,2]
[328367426,1717259438747,-6213.3111658,0.000315,5]
[328367427,1717259438759,-1222.02031038,0.000315,5]
[328367428,1717259438770,-1988.21345814,0.000315,5]
[328367429,1717259438782,-1135.53216571,0.000315,5]
[328367430,1717259438793,-450.89332225,0.000315,5]
[328367431,1717259438805,-272.32466048,0.000315,5]
[328367432,1717259438816,-324.95664198,0.000315,5]
[328367433,1717259438827,-251.16883427,0.000315,5]
[328367434,1717259438840,-2330.71214622,0.000315,5]
[328367435,1717259438880,-96314.85495715,0.000315,5]
[328367436,1717259438892,-16274.61852,0.000315,5]
[328367437,1717259438904,-6512.96046108,0.000315,5]
[328367438,1717259438927,-427.20419193,0.000315,5]
[328367439,1717259439000,-37892.7426653,0.000315,5]
[328367445,1717259440887,-219.0,0.000315,5]
[328367446,1717259440897,-283.9434928,0.000315,5]
[328367447,1717259440908,-147857.78676074,0.000315,5]
[328367448,1717259441009,-3755.125,0.000315,5]
[328367449,1717259441020,-1893.40639336,0.000315,5]
[328367450,1717259441031,-2969.09410277,0.000315,5]
[328367451,1717259441042,-3297.4923075,0.000315,5]
[328367452,1717259441829,-198828.86836148,0.000315,5]
[328367453,1717259441841,-3106.43771268,0.000315,5]
[328367454,1717259441909,-81305.88703062,0.000315,5]
[328367455,1717259442072,-840.4483726,0.000315,5]
[328367456,1717259443303,-972.55385994,0.000315,5]
[328367457,1717259443315,-1063.04735,0.000315,5]
[328367458,1717259443369,-855.3,0.000315,5]
[328367459,1717259443431,-679.98,0.000315,5]
[328367460,1717259443497,-2565.51969176,0.000315,5]
[328367461,1717259443508,-6044.14409262,0.000315,5]
[328367462,1717259443520,-6077.98951368,0.000315,5]
[328367463,1717259443531,-657.72390437,0.000315,5]
[328367464,1717259443543,-993.56644484,0.000315,5]
[328367465,1717259443565,-803521.39733317,0.000315,5]
[328367466,1717259443785,-831.48450349,0.000315,5]
[328367467,1717259443797,-9591.71186514,0.000315,5]
[328367468,1717259443808,-3853.3,0.000315,5]
[328367469,1717259443823,-34519.95288841,0.000315,5]
[328367470,1717259443835,-19250.01800254,0.000315,5]
[328367483,1717259446261,-162.65,0.00024947,2]
[328367484,1717259446271,-208.95630494,0.00031499,4]
[328367485,1717259446281,-252.28268689,0.00031499,4]
[328367486,1717259446290,-356.37847245,0.00031499,2]
[328367487,1717259446299,-448229.12169712,0.000315,5]
[328367488,1717259446310,-5457.20935669,0.000315,5]
[328367489,1717259446406,-670.85,0.000315,5]
[328367495,1717259654001,259.1,0.00011,2]
[328367496,1717259673662,2378.92983574,6.94e-05,2]
[328367497,1717259673684,4000.0,6.94e-05,2]
[328367498,1717259673707,4000.0,6.94e-05,2]
[328367499,1717259673728,4000.0,6.94e-05,2]
[328367500,1717259673749,621.07016426,6.94e-05,2]
[328367502,1717259683900,-155.0,0.00013998,2]
[328367503,1717259683924,-2367.15501921,0.00013999,2]
[328367504,1717259683953,-29834.94498079,0.00014,2]
[328367505,1717259721645,675.362944,0.00010499,2]
[328367506,1717259730578,-663.76,0.0001399,3]
[328367507,1717259730599,-3096.59597985,0.00013997,2]
[328367508,1717259730619,-155.0,0.00013998,2]
[328367509,1717259730642,-84.64402015,0.00013998,2]
[328367510,1717259731623,-706.47469014,0.00013998,2]
[328367511,1717259731645,-949.10416499,0.00013999,2]
[328367512,1717259731668,-155.0,0.00013999,2]
[328367514,1717259737447,1414.69280578,0.00013998,2]
[328367515,1717259749853,774.72833909,0.00013998,2]
[328367516,1717259749873,2320.04373483,0.00013998,2]
[328367517,1717259750864,481.3060343,0.00013998,2]
[328367518,1717259763160,150.0,0.00013998,2]
[328367519,1717259763272,150.0,0.00013998,2]
[328367520,1717259764175,180.46644429,0.00013998,2]
[328367521,1717259764898,718.18378658,0.0001399,2]
[328367522,1717259764921,1027.63359488,0.0001399,2]
[328367523,1717259770790,2972.36640512,0.00013998,2]
[328367524,1717259770972,4000.0,0.00013998,2]
[328367525,1717259770996,4000.0,0.00013998,2]
[328367526,1717259771018,4000.0,0.00013998,2]
[328367527,1717259771040,4000.0,0.00013998,2]
[328367528,1717259781334,-4000.0,0.00013998,2]
[328367529,1717259781832,-4000.0,0.00013998,2]
[328367530,1717259783992,-403.56863775,0.00013997,2]
[328367531,1717259784015,-3596.43136225,0.00013998,2]
[328367532,1717259784398,-4000.0,0.00013998,2]
[328367533,1717259791574,200.0,0.00013371,2]
[328367535,1717259799012,-1251.94119873,0.00013998,2]
[328367536,1717259799035,-481.3060343,0.00013998,2]
[328367537,1717259799058,-200.02976919,0.00013998,2]
[328367538,1717259799080,-263.31816846,0.00013998,2]
[328367539,1717259799102,-156.15744793,0.00013998,2]
[328367540,1717259799123,-180.40541231,0.00013998,2]
[328367541,1717259799146,-402.65944698,0.00013998,2]
[328367542,1717259806201,488.55,0.0001399,3]
[328367543,1717259812848,337.16047196,0.00013998,2]
[328367544,1717259816834,238.47205014,0.00013371,2]
[328367545,1717259816856,4000.0,0.00013371,2]
[328367546,1717259816878,4000.0,0.00013371,2]
[328367547,1717259816902,4000.0,0.00013371,2]
[328367548,1717259816924,2503.56689174,0.00013371,2]
[328367549,1717259816945,257.96105812,0.00013371,2]
[328367550,1717259841903,-3000.0,0.00013997,2]
[328367552,1717259855069,-190.89242599,0.000139,2]
[328367553,1717259855096,-2488.23697739,0.00013997,2]
[328367554,1717259855120,-2320.87059662,0.00013998,2]
[328367555,1717259855695,-2251.96001287,0.00013998,2]
[328367556,1717259856418,505.94027857,0.00013996,2]
[328367557,1717259858217,2242.09970856,0.00013997,2]
[328367558,1717259858238,2103.55202617,0.00013997,2]
[328367559,1717259862801,2896.44797383,0.00013997,2]
[328367560,1717259862825,5000.0,0.00013997,2]
[328367561,1717259862849,5000.0,0.00013997,2]
[328367562,1717259862874,3405.17444161,0.00013997,2]
[328367563,1717259870492,560.80125362,0.00013999,2]
[328367564,1717259874664,257.17269946,0.00013998,2]
[328367565,1717259875645,364.96719133,0.00013998,2]
[328367566,1717259880962,411.88441398,0.00013997,2]
[328367567,1717259880985,5000.0,0.00013997,2]
[328367568,1717259881007,5000.0,0.00013997,2]
[328367569,1717259881028,5000.0,0.00013997,2]
[328367570,1717259881050,5000.0,0.00013997,2]
[328367571,1717259881072,5000.0,0.00013997,2]
[328367572,1717259881097,5000.0,0.00013997,2]
[328367573,1717259908638,-422.2952107,0.000139,2]
[328367574,1717259908661,-4577.7047893,0.00013997,2]
[328367578,1717260306896,-489.81743088,0.00013887,2]
[328367579,1717260306918,-110.18256912,0.00013888,2]
[328367580,1717260431252,2400.0,0.000133,4]
[328367581,1717260433352,1342.03894188,0.000134,4]
[328367582,1717260433377,3557.96105812,0.000134,4]
[328367583,1717260435454,442.03894188,0.000135,4]
[328367584,1717260435477,4000.0,0.000135,4]
[328367585,1717260435499,2957.96105812,0.000135,4]
[328367586,1717260445210,210.68266304,0.00013599,2]
[328367587,1717260447875,831.35627884,0.00013599,2]
[328367588,1717260447897,1986.48093385,0.00013599,2]
[328367589,1717260451583,162.29,0.00012783,2]
[328367590,1717260454184,-504.0625461,0.000136,4]
[328367591,1717260496844,165.56535883,0.000136,2]
[328367592,1717260511802,200.0,0.00034951,30]
[328367593,1717260521716,210.68266304,0.00013599,2]
[328367596,1717260555144,-9395.9374539,0.000136,4]
[328367597,1717260555167,-150.0,0.00013699,2]
[328367598,1717260555189,-150.0,0.00013699,2]
[328367599,1717260555211,-12268.74067018,0.000137,5]
[328367606,1717260627867,162.65,0.00011837,2]
[328367607,1717260631460,-131.25932982,0.000137,5]
[328367608,1717260631470,-150.0,0.000137,2]
[328367609,1717260631479,-150.0,0.000137,2]
[328367610,1717260631488,-150.0,0.000137,2]
[328367611,1717260631497,-150.0,0.000137,2]
[328367612,1717260631506,-150.0,0.000137,2]
[328367613,1717260631516,-150.0,0.000137,2]
[328367614,1717260631525,-150.0,0.000137,2]
[328367615,1717260631534,-150.0,0.000137,2]
[328367616,1717260631544,-150.0,0.000137,2]
[328367617,1717260631553,-150.0,0.000137,2]
[328367618,1717260631562,-150.0,0.000137,2]
[328367619,1717260631571,-150.0,0.000137,2]
[328367620,1717260631581,-150.0,0.000137,2]
[328367621,1717260631590,-150.0,0.000137,2]
[328367622,1717260631599,-54.02283067,0.000137,2]
[328367623,1717260631619,-95.97716933,0.000137,2]
[328367624,1717260631629,-150.0,0.000137,2]
[328367625,1717260631638,-150.0,0.000137,2]
[328367626,1717260631647,-150.0,0.000137,2]
[328367627,1717260631657,-150.0,0.000137,2]
[328367628,1717260631666,-150.0,0.000137,2]
[328367629,1717260631677,-150.0,0.000137,2]
[328367630,1717260631686,-237.82324314,0.000137,2]
[328367631,1717260631695,-2400.0,0.000138,5]
[328367632,1717260631704,-194.90792632,0.00013883,2]
[328367633,1717260631714,-619.33603174,0.00013885,2]
[328367634,1717260631723,-7543.1884935,0.00013888,2]
[328367635,1717260631743,-10649.03730408,0.00013888,2]
[328367636,1717260631752,-498.73284328,0.00013888,2]
[328367637,1717260631764,-584.49,0.00013888,2]
[328367644,1717260632422,-1064.71783951,0.00013888,2]
[328367645,1717260632434,-9867.3397618,0.00013888,2]
[328367646,1717260632445,-598.11050968,0.00013888,2]
[328367647,1717260632457,-8262.71084393,0.00013888,2]
[328367648,1717260637380,-2023.7124868,0.00013888,2]
[328367649,1717260637393,-8101.20158285,0.00013888,2]
[328367650,1717260637403,-181.07057154,0.000139,2]
[328367651,1717260637412,-756.81148949,0.000139,2]
[328367652,1717260637422,-2400.0,0.000139,5]
[328367653,1717260637431,-1336.93179159,0.000139,2]
[328367654,1717260637440,-195.42834477,0.000139,2]
[328367655,1717260637451,-281.53014046,0.000139,2]
[328367656,1717260637460,-317.13683261,0.000139,2]
[328367657,1717260637470,-164.71480933,0.000139,2]
[328367658,1717260637479,-8552.20047584,0.000139,2]
[328367659,1717260637489,-1336.93179155,0.00013954,2]
[328367660,1717260637498,-150.0,0.00013973,2]
[328367661,1717260637508,-499.99,0.00013973,2]
[328367662,1717260637519,-150.99,0.0001399,2]
[328367663,1717260637529,-170.46016418,0.0001399,2]
[328367664,1717260637539,-170.46016418,0.0001399,2]
[328367665,1717260637549,-170.46016418,0.0001399,2]
[328367666,1717260637559,-150.4,0.0001399,2]
[328367667,1717260637569,-150.4,0.0001399,2]
[328367668,1717260637579,-150.4,0.0001399,2]
[328367669,1717260637588,-150.4,0.0001399,2]
[328367670,1717260637598,-150.4,0.0001399,2]
[328367671,1717260637608,-150.4,0.0001399,2]
[328367672,1717260637618,-150.4,0.0001399,2]
[328367673,1717260637628,-150.4,0.0001399,2]
[328367674,1717260637638,-150.4,0.0001399,2]
[328367675,1717260637647,-150.4,0.0001399,2]
[328367676,1717260637656,-150.4,0.0001399,2]
[328367677,1717260637665,-150.4,0.0001399,2]
[328367678,1717260637674,-150.4,0.0001399,2]
[328367679,1717260637683,-150.4,0.0001399,2]
[328367680,1717260637693,-150.4,0.0001399,2]
[328367681,1717260637703,-150.4,0.0001399,2]
[328367682,1717260637712,-150.4,0.0001399,2]
[328367683,1717260637723,-2.87769892,0.0001399,2]
[328367684,1717260637735,-147.52230108,0.0001399,2]
[328367685,1717260637745,-150.4,0.0001399,2]
[328367686,1717260637755,-150.4,0.0001399,2]
[328367688,1717260637764,-150.4,0.0001399,2]
[328367690,1717260637774,-150.4,0.0001399,2]
[328367692,1717260637783,-150.4,0.0001399,2]
[328367693,1717260637792,-150.4,0.0001399,2]
[328367694,1717260637802,-150.4,0.0001399,2]
[328367695,1717260637812,-150.4,0.0001399,2]
[328367696,1717260637821,-150.4,0.0001399,2]
[328367697,1717260637830,-150.4,0.0001399,2]
[328367698,1717260637840,-150.4,0.0001399,2]
[328367699,1717260637855,-150.4,0.0001399,2]
[328367700,1717260637864,-150.4,0.0001399,2]
[328367701,1717260637874,-150.4,0.0001399,2]
[328367702,1717260637883,-150.4,0.0001399,2]
[328367703,1717260637895,-150.4,0.0001399,2]
[328367704,1717260638085,-150.4,0.0001399,2]
[328367705,1717260638096,-150.4,0.0001399,2]
[328367706,1717260638106,-150.4,0.0001399,2]
[328367707,1717260638116,-150.4,0.0001399,2]
[328367708,1717260638125,-150.4,0.0001399,2]
[328367709,1717260638135,-150.4,0.0001399,2]
[328367710,1717260638146,-150.4,0.0001399,2]
[328367711,1717260638156,-150.4,0.0001399,2]
[328367712,1717260638166,-150.4,0.0001399,2]
[328367713,1717260638175,-150.4,0.0001399,2]
[328367714,1717260638185,-150.4,0.0001399,2]
[328367715,1717260638194,-150.4,0.0001399,2]
[328367716,1717260638204,-150.4,0.0001399,2]
[328367717,1717260638214,-150.4,0.0001399,2]
[328367718,1717260638223,-150.4,0.0001399,2]
[328367719,1717260638232,-150.4,0.0001399,2]
[328367720,1717260638242,-150.4,0.0001399,2]
[328367721,1717260638252,-150.4,0.0001399,2]
[328367722,1717260638261,-150.4,0.0001399,2]
[328367723,1717260638271,-150.4,0.0001399,2]
[328367724,1717260638280,-150.4,0.0001399,2]
[328367725,1717260638289,-150.4,0.0001399,2]
[328367726,1717260638299,-150.4,0.0001399,2]
[328367727,1717260638308,-150.4,0.0001399,2]
[328367728,1717260638318,-150.4,0.0001399,2]
[328367729,1717260638327,-150.4,0.0001399,2]
[328367730,1717260638337,-150.4,0.0001399,2]
[328367731,1717260638346,-150.4,0.0001399,2]
[328367732,1717260638356,-150.4,0.0001399,2]
[328367733,1717260638365,-150.4,0.0001399,2]
[328367734,1717260638375,-150.4,0.0001399,2]
[328367735,1717260638385,-150.4,0.0001399,2]
[328367736,1717260638395,-150.4,0.0001399,2]
[328367737,1717260638404,-150.4,0.0001399,2]
[328367738,1717260638414,-150.4,0.0001399,2]
[328367739,1717260638424,-150.4,0.0001399,2]
[328367740,1717260638434,-150.4,0.0001399,2]
[328367741,1717260638443,-150.4,0.0001399,2]
[328367742,1717260638453,-86.33944992,0.0001399,2]
[328367743,1717260638466,-64.06055008,0.0001399,2]
[328367744,1717260638475,-150.4,0.0001399,2]
[328367745,1717260638484,-150.4,0.0001399,2]
[328367746,1717260638494,-358.49429922,0.00013998,2]
[328367747,1717260638504,-536.23096057,0.00013998,2]
[328367748,1717260638514,-294.48,0.00013998,2]
[328367749,1717260638523,-239.52821066,0.00013998,2]
[328367750,1717260638533,-155.0,0.00013999,2]
[328367751,1717260638543,-2841.07249371,0.00013999,2]
[328367752,1717260638552,-31420.87176763,0.00014,2]
[328367753,1717260638564,-3863.4679224,0.00014,2]
[328367754,1717260638575,-5216.0,0.00014,2]
[328367755,1717260638591,-1716480.62913596,0.00014,2]
[328367756,1717260638602,-5011.6,0.00014,2]
[328367757,1717260638665,-425.12106461,0.00014,2]
[328367758,1717260638677,-68663.47816687,0.00014,2]
[328367759,1717260638691,-461.42125346,0.00014,2]
[328367761,1717260640004,-21786.0,0.00014,2]
[328367762,1717260640099,-351127.69381619,0.00014,2]
[328367763,1717260640109,-380.385,0.00014,2]
[328367764,1717260640120,-838.64011097,0.00014,2]
[328367765,1717260640694,-2263.88315522,0.00014,2]
[328367766,1717260640705,-41587.31332761,0.00014,2]
[328367767,1717260640718,-8265.06228732,0.00014,2]
[328367768,1717260640732,-884.29427894,0.00014,2]
[328367769,1717260640753,-345.1849985,0.00014,2]
[328367770,1717260640765,-1476.6540648,0.00014,2]
[328367771,1717260640776,-3928.67887252,0.00014,2]
[328367772,1717260640787,-2222.0873454,0.00014,2]
[328367780,1717260642648,-12621.69186423,0.00014,2]
[328367781,1717260642660,-5983.23902562,0.00014,2]
[328367782,1717260642671,-1729.81007946,0.00014,2]
[328367783,1717260642682,-25561.91,0.00014,2]
[328367784,1717260642694,-7706.15999992,0.00014,2]
[328367785,1717260642706,-74636.78412282,0.00014,2]
[328367786,1717260642745,-2148562.56889389,0.00014,2]
[328367787,1717260642756,-614094.86583383,0.00014,2]
[328367788,1717260642767,-49275.13583637,0.00014,2]
[328367789,1717260642778,-1103.13971099,0.00014,2]
[328367793,1717260645424,-2168.252025,0.00014,2]
[328367794,1717260646069,-28368.18261475,0.00014,2]
[328367795,1717260646081,-4484.91574535,0.00014,2]
[328367796,1717260646115,-3345.05,0.00014,2]
[328367797,1717260646129,-3416.41649533,0.00014,2]
[328367798,1717260646142,-1664.55494908,0.00014,2]
[328367799,1717260646153,-507.36085402,0.00014,2]
[328367800,1717260646164,-3690.56082276,0.00014,2]
[328367801,1717260646175,-348531.5341109,0.00014,2]
[328367802,1717260665294,220.6056,0.000135,2]
[328367803,1717260695870,1091.72544428,0.00013298,2]
[328367804,1717260695893,206.66475915,0.00013298,2]
[328367807,1717260749871,-155.0,0.00013695,2]
[328367808,1717260749898,-2045.0,0.00013696,2]
[328367810,1717260769320,289.58953642,0.00013298,2]
[328367811,1717260772390,20247.35363618,0.00013298,2]
[328367813,1717260788398,9288.78837675,0.00013298,2]
[328367814,1717261011194,179.78,0.00010613,2]
[328367815,1717261020305,376.87,0.00011331,2]
[328367816,1717261020518,376.87,0.00013595,2]
[328367817,1717261128291,157.64,0.0001338,2]
[328367818,1717261128551,157.64,0.00013457,2]
[328367819,1717261128807,157.64,0.00013535,2]
[328367820,1717261153569,10305.37,0.00013134,2]
[328367821,1717261285593,150.0,0.00013165,2]
[328367822,1717261296598,1448.43,0.00013165,2]
[328367824,1717261320360,436.08,0.00013165,2]
[328367825,1717261326984,250.0,0.00013142,2]
[328367826,1717261359839,624.86771419,0.000136,2]
[328367827,1717261365096,7529.62685189,0.000136,2]
[328367828,1717261366316,1251.30968724,0.000136,2]
[328367829,1717261372693,544.95457193,0.000136,2]
[328367830,1717261372741,167.45,0.00013144,2]
[328367831,1717261375208,452.72561266,0.000136,2]
[328367832,1717261388683,3066.76266132,0.000136,2]
[328367833,1717261389976,-4000.0,0.00013601,2]
[328367834,1717261391212,601.92754412,0.00012456,2]
[328367835,1717261418163,250.0,0.00013169,2]
[328367836,1717261435642,220.67,0.00013186,2]
[328367838,1717261450007,155.0,0.00013296,2]
[328367839,1717261498523,6896.87,0.00013276,2]
[328367840,1717261515683,339.18,0.00011253,2]
[328367841,1717261515950,339.18,0.00013517,2]
[328367842,1717261526067,23900.0,0.00013171,2]
[328367843,1717261539944,248.11252903,0.00033999,91]
[328367844,1717261610181,-189.73060045,0.0001361,2]
[328367845,1717261631056,236.43346983,0.00013296,2]
[328367846,1717261633806,400.0,0.000135,4]
[328367847,1717261635905,800.0,0.000136,4]
[328367848,1717261676590,157.64,0.00013055,2]
[328367849,1717261676815,157.64,0.00013169,2]
[328367850,1717261677048,157.64,0.00013282,2]
[328367851,1717261677287,157.64,0.00013395,2]
[328367852,1717261677538,157.64,0.00013509,2]
[328367853,1717261693335,492.59595621,0.00012458,2]
[328367859,1717261788689,160.92,0.00010417,2]
[328367874,1717261831830,-785.21960307,0.00013606,2]
[328367875,1717261831840,-714.45903721,0.00013607,2]
[328367876,1717261831850,-157.64,0.00013622,2]
[328367877,1717261831859,-177.55,0.00013658,2]
[328367878,1717261831869,-14277.28368692,0.00013693,2]
[328367879,1717261831878,-4451.96527699,0.00013694,2]
[328367880,1717261831887,-173.8,0.00013699,2]
[328367881,1717261831896,-2751.0,0.00013699,2]
[328367882,1717261831906,-228.69,0.00013699,2]
[328367883,1717261831915,-155.0,0.000137,2]
[328367884,1717261831924,-1200.0,0.000137,5]
[328367885,1717261831934,-381.76420571,0.00013727,2]
[328367886,1717261831943,-499.99,0.00013727,2]
[328367887,1717261831952,-150.99,0.00013727,2]
[328367888,1717261831961,-157.64,0.00013735,2]
[328367889,1717261831970,-299.99,0.0001379,2]
[328367890,1717261831981,-1600.0,0.000138,5]
[328367891,1717261831990,-411.86496791,0.00013814,2]
[328367892,1717261831999,-1000.0,0.00013899,2]
[328367893,1717261832009,-2894.8200719,0.000139,2]
[328367894,1717261832019,-581.9786,0.000139,2]
[328367895,1717261832028,-9341.2151,0.000139,2]
[328367896,1717261832037,-4881.1369,0.000139,2]
[328367897,1717261832047,-6913.5928,0.000139,2]
[328367898,1717261832056,-174.402,0.000139,2]
[328367899,1717261832066,-150.6500549,0.000139,2]
[328367900,1717261832075,-869.70458944,0.000139,2]
[328367901,1717261832084,-2000.0,0.000139,5]
[328367902,1717261832094,-204.59690359,0.000139,2]
[328367903,1717261832103,-3510.5234,0.000139,2]
[328367904,1717261832113,-269.84793654,0.000139,2]
[328367905,1717261832122,-197.87473693,0.000139,2]
[328367906,1717261832132,-319.34825778,0.000139,2]
[328367907,1717261832141,-151.96479504,0.000139,2]
[328367908,1717261832150,-176.31670544,0.00013977,2]
[328367909,1717261832160,-584.99,0.0001399,3]
[328367910,1717261832169,-237.32702748,0.0001399,2]
[328367911,1717261832178,-237.32702748,0.0001399,2]
[328367912,1717261832187,-151.7,0.0001399,2]
[328367913,1717261832197,-237.32702748,0.0001399,2]
[328367914,1717261832206,-1002.80185968,0.00013996,2]
[328367915,1717261832215,-10535.78838722,0.00013996,2]
[328367916,1717261832225,-218.41458527,0.00013997,2]
[328367917,1717261832234,-219.01377094,0.00013997,2]